bitfinex/quotes_BTCUSD_20250618
["timestamp","ask_amount","ask_price","bid_price","bid_amount"]
[1750242428502,4.8792686,104690.0,104680.0,0.06366]
[1750242428715,4.8792686,104690.0,104680.0,0.07321292]
[1750242429148,4.8792686,104690.0,104680.0,0.27382412]
[1750242429561,5.19642061,104690.0,104680.0,0.27382412]
[1750242430198,5.20242061,104690.0,104680.0,0.27482412]
[1750242430818,5.20242061,104690.0,104680.0,0.26527138]
[1750242431456,5.20242061,104690.0,104680.0,0.07421292]
[1750242431883,5.20242061,104690.0,104680.0,0.27482412]
[1750242432331,5.20246061,104690.0,104680.0,0.28437676]
[1750242432553,5.22528839,104690.0,104680.0,0.27482412]
[1750242432959,5.20246061,104690.0,104680.0,0.27482412]
[1750242433161,5.22528837,104690.0,104680.0,0.27482412]
[1750242433364,5.20246061,104690.0,104680.0,0.27482412]
[1750242434001,5.20246061,104690.0,104680.0,0.26527138]
[1750242434213,5.2157345,104690.0,104680.0,0.07421292]
[1750242434641,5.1929087,104690.0,104680.0,0.07421292]
[1750242434854,5.1929087,104690.0,104680.0,0.27482421]
[1750242435324,5.1929087,104690.0,104680.0,0.28437695]
[1750242436176,5.1929087,104690.0,104680.0,0.29392959]
[1750242437035,5.1929087,104690.0,104680.0,0.28437695]
[1750242437246,5.21573175,104690.0,104680.0,0.27482421]
[1750242437477,5.21573175,104690.0,104680.0,0.07421292]
[1750242439233,5.21573175,104690.0,104680.0,0.26527138]
[1750242439449,5.21573175,104690.0,104680.0,0.27482421]
[1750242439882,5.21573175,104690.0,104680.0,0.06466]
[1750242440577,5.35880292,104690.0,104680.0,0.06466]
[1750242441417,5.37663475,104690.0,104680.0,0.06466]
[1750242444942,5.3766405,104690.0,104680.0,0.06466]
[1750242445608,0.01910702,104670.0,104660.0,0.0631]
[1750242445843,0.46650549,104670.0,104660.0,0.06324145]
[1750242446075,0.63799972,104670.0,104660.0,0.06324145]
[1750242446280,0.50386939,104670.0,104660.0,0.26389107]
[1750242446733,0.49431602,104670.0,104660.0,0.25433642]
[1750242446949,0.49531602,104670.0,104660.0,0.26689116]
[1750242447167,0.49531602,104670.0,104660.0,0.27644572]
[1750242447168,0.38453341,104670.0,104660.0,0.27644572]
[1750242448089,0.38453341,104670.0,104660.0,0.27744572]
[1750242450667,0.38453341,104670.0,104660.0,0.07679619]
[1750242451747,0.44495528,104670.0,104660.0,0.06724145]
[1750242452404,0.38453341,104670.0,104660.0,0.06724145]
[1750242453712,0.49531602,104670.0,104660.0,0.06724145]
[1750242456223,5.28822302,104670.0,104660.0,0.06724145]
[1750242456447,5.37156847,104670.0,104660.0,0.00414145]
[1750242456675,5.43158647,104670.0,104660.0,0.00414145]
[1750242456909,10.63764666,104670.0,104660.0,0.00414145]
[1750242457168,10.64433414,104670.0,104660.0,0.00414145]
[1750242457600,10.63764666,104670.0,104660.0,0.00414145]
[1750242457808,10.64433396,104670.0,104660.0,0.00314145]
[1750242458238,10.64533396,104670.0,104660.0,0.00314145]
[1750242459090,10.64433396,104670.0,104660.0,0.00014145]
[1750242459539,10.64633396,104670.0,104660.0,0.00114145]
[1750242459986,10.68438962,104670.0,104660.0,0.00114145]
[1750242460840,10.30004915,104670.0,104660.0,0.00114145]
[1750242461071,10.50288915,104670.0,104660.0,0.00114145]
[1750242461298,10.26199349,104670.0,104660.0,0.06644145]
[1750242461507,10.43569874,104670.0,104660.0,0.06644145]
[1750242461711,10.29185643,104670.0,104660.0,0.06644145]
[1750242461953,10.45193643,104670.0,104660.0,0.06644145]
[1750242462183,10.44525239,104670.0,104660.0,0.06644145]
[1750242462450,10.41664142,104670.0,104660.0,0.06644145]
[1750242462656,10.51947232,104670.0,104660.0,0.06644145]
[1750242462875,10.34892088,104670.0,104660.0,0.00114145]
[1750242463102,10.56714937,104670.0,104660.0,0.00114145]
[1750242463765,10.59576034,104670.0,104660.0,0.00114145]
[1750242464413,10.62586034,104670.0,104660.0,0.00114145]
[1750242464833,10.59576034,104670.0,104660.0,0.00114145]
[1750242465263,10.59575993,104670.0,104660.0,0.00114145]
[1750242465667,10.58907866,104670.0,104660.0,0.00114145]
[1750242465886,10.59575993,104670.0,104660.0,0.00114145]
[1750242466314,10.49961071,104670.0,104660.0,0.00114145]
[1750242466722,10.29677071,104670.0,104660.0,0.03214145]
[1750242466951,10.49965071,104670.0,104660.0,0.06354145]
[1750242467378,10.22734558,104670.0,104660.0,0.06354145]
[1750242467614,10.41842229,104670.0,104660.0,0.06354145]
[1750242468256,10.41842229,104670.0,104660.0,0.06306456]
[1750242468699,10.21554229,104670.0,104660.0,0.06306456]
[1750242468930,10.41842229,104670.0,104660.0,0.06306456]
[1750242470071,10.41842488,104670.0,104660.0,0.06306456]
[1750242470738,10.21554277,104670.0,104660.0,0.06306456]
[1750242470953,10.41842277,104670.0,104660.0,0.06306456]
[1750242471174,5.36842277,104670.0,104660.0,0.06306456]
[1750242471404,5.16554277,104670.0,104660.0,0.06306456]
[1750242471619,5.36842277,104670.0,104660.0,0.06306456]
[1750242472957,10.60860941,104670.0,104660.0,0.00066456]
[1750242474309,10.60856941,104670.0,104660.0,0.00066456]
[1750242475618,10.60857761,104670.0,104660.0,0.00066456]
[1750242477309,10.2763657,104670.0,104660.0,0.06536456]
[1750242477516,5.39694833,104670.0,104660.0,0.06536456]
[1750242477737,5.36823033,104670.0,104660.0,0.06536456]
[1750242478384,5.40628599,104670.0,104660.0,0.06536456]
[1750242479017,5.36823033,104670.0,104660.0,0.06536456]
[1750242479350,5.40628599,104670.0,104660.0,0.06536456]
[1750242480655,5.50243521,104670.0,104660.0,0.06536456]
[1750242481727,5.5024376,104670.0,104660.0,0.06536456]
[1750242482153,5.50243814,104670.0,104660.0,0.06536456]
[1750242483461,10.64658045,104670.0,104660.0,0.00066456]
[1750242483894,10.64658045,104670.0,104660.0,0.06376456]
[1750242484113,10.61335962,104670.0,104660.0,0.06376456]
[1750242485006,10.58091927,104670.0,104660.0,0.06376456]
[1750242486946,10.58092326,104670.0,104660.0,0.06376456]
[1750242487377,10.58092326,104670.0,104660.0,0.00066456]
[1750242488457,10.58092349,104670.0,104660.0,0.00066456]
[1750242489344,10.58092349,104670.0,104660.0,0.06516456]
[1750242489787,10.5809235,104670.0,104660.0,0.06516456]
[1750242492136,10.6096425,104670.0,104660.0,0.06516456]
[1750242492688,10.60964247,104670.0,104660.0,0.06516456]
[1750242492892,10.51349325,104670.0,104660.0,0.06516456]
[1750242493683,10.35345325,104670.0,104660.0,0.06516456]
[1750242493896,10.51349325,104670.0,104660.0,0.06516456]
[1750242495411,10.51349339,104670.0,104660.0,0.06516456]
[1750242495860,10.60964261,104670.0,104660.0,0.06516456]
[1750242500610,10.40481052,104670.0,104660.0,0.06516456]
[1750242502559,10.21651137,104670.0,104660.0,0.06516456]
[1750242502761,10.41923137,104670.0,104660.0,0.06516456]
[1750242506639,10.41253018,104670.0,104660.0,0.06516456]
[1750242506859,10.41923194,104670.0,104660.0,0.06516456]
[1750242507905,10.30854187,104670.0,104660.0,0.06516456]
[1750242510442,10.37503711,104670.0,104660.0,0.06516456]
[1750242512309,10.37504082,104670.0,104660.0,0.06516456]
[1750242513520,10.40801304,104670.0,104660.0,0.06516456]
[1750242514819,10.36995738,104670.0,104660.0,0.06516456]
[1750242515077,10.47394198,104670.0,104660.0,0.06516456]
[1750242515305,10.47394198,104670.0,104650.0,0.01709352]
[1750242515306,9.93430138,104660.0,104650.0,0.01709352]
[1750242515545,4.54432055,104650.0,104640.0,0.03187379]
[1750242515766,4.85865635,104650.0,104640.0,0.03187379]
[1750242517389,4.86065635,104650.0,104640.0,0.03287379]
[1750242517862,4.96560542,104650.0,104640.0,0.03287379]
[1750242518099,4.97230889,104650.0,104640.0,0.03287379]
[1750242518324,4.97230889,104650.0,104640.0,0.06507379]
[1750242518585,4.97330889,104650.0,104640.0,0.06507379]
[1750242519049,10.02330889,104650.0,104640.0,0.06507379]
[1750242520215,10.0525905,104650.0,104640.0,0.06507379]
[1750242520684,10.05258773,104650.0,104640.0,0.03287379]
[1750242521619,9.95643851,104650.0,104640.0,0.06477379]
[1750242521859,4.68793128,104650.0,104640.0,0.06477379]
[1750242522063,4.64306745,104650.0,104640.0,0.07433036]
[1750242522278,4.80298745,104650.0,104640.0,0.07433036]
[1750242522702,4.80298745,104650.0,104640.0,0.08388684]
[1750242523349,4.89913667,104650.0,104640.0,0.06477379]
[1750242523558,4.8895812,104650.0,104640.0,0.06477379]
[1750242524210,4.8895812,104650.0,104640.0,0.07433036]
[1750242524428,4.8895812,104650.0,104640.0,0.06477379]
[1750242524670,4.98582296,104650.0,104640.0,0.06477379]
[1750242525390,4.61943973,104650.0,104640.0,0.27501806]
[1750242525616,4.82203973,104650.0,104640.0,0.27501806]
[1750242526201,4.82203973,104650.0,104640.0,0.26546176]
[1750242526452,4.82203973,104650.0,104640.0,0.06477379]
[1750242528478,4.91828149,104650.0,104640.0,0.06477379]
[1750242528703,5.01443071,104650.0,104640.0,0.06477379]
[1750242528896,5.04740293,104650.0,104640.0,0.06477379]
[1750242532259,5.01443071,104650.0,104640.0,0.06477379]
[1750242532725,4.61943973,104650.0,104640.0,0.06477379]
[1750242532972,4.82203973,104650.0,104640.0,0.06477379]
[1750242537040,5.16203973,104650.0,104640.0,0.06477379]
[1750242537906,0.8424442,104650.0,104640.0,0.06477379]
[1750242539473,0.8424442,104650.0,104640.0,0.26546185]
[1750242539474,0.6825642,104650.0,104640.0,0.26546185]
[1750242539704,0.82339111,104650.0,104640.0,0.28457453]
[1750242539926,0.82339165,104650.0,104640.0,0.27501833]
[1750242540148,0.81383645,104650.0,104640.0,0.27501833]
[1750242540358,0.81383645,104650.0,104640.0,0.28457472]
[1750242540806,0.81383645,104650.0,104640.0,0.29413092]
[1750242540807,0.42016268,104650.0,104640.0,0.29413092]
[1750242541025,0.63223815,104650.0,104640.0,0.30368685]
[1750242541236,0.08971815,104650.0,104640.0,0.30368685]
[1750242541450,0.44953721,104650.0,104640.0,0.30368685]
[1750242541665,0.47235815,104650.0,104640.0,0.30368685]
[1750242541876,0.42971815,104650.0,104640.0,0.30368685]
[1750242542515,0.43927335,104650.0,104640.0,0.30368685]
[1750242543405,0.44882892,104650.0,104640.0,0.30368685]
[1750242543620,0.43927335,104650.0,104640.0,0.30368685]
[1750242543834,0.44882892,104650.0,104640.0,0.30368685]
[1750242545633,0.45838458,104650.0,104640.0,0.30368685]
[1750242548765,0.64949781,104650.0,104640.0,0.29413092]
[1750242549013,0.63994288,104650.0,104640.0,0.30368703]
[1750242550010,0.63994288,104650.0,104640.0,0.30368648]
[1750242551428,0.63038768,104650.0,104640.0,0.29413046]
[1750242551694,0.62083221,104650.0,104640.0,0.28457435]
[1750242552322,0.4328163,104650.0,104640.0,0.28457435]
[1750242552780,0.45568543,104650.0,104640.0,0.28457435]
[1750242553606,0.48442935,104650.0,104640.0,0.28457435]
[1750242554390,0.48442935,104650.0,104640.0,0.29413046]
[1750242554822,0.49902379,104650.0,104640.0,0.29413046]
[1750242555421,0.49902379,104650.0,104640.0,0.28457435]
[1750242556378,0.49902379,104650.0,104640.0,0.06477379]
[1750242556607,0.48946822,104650.0,104640.0,0.26546176]
[1750242556844,0.48946822,104650.0,104640.0,0.27501815]
[1750242558339,0.48946822,104650.0,104640.0,0.29413065]
[1750242559010,0.30791,104650.0,104640.0,0.30368658]
[1750242559279,0.32702077,104650.0,104640.0,0.30368658]
[1750242559495,0.32702077,104650.0,104640.0,0.29413065]
[1750242559712,0.518134,104650.0,104640.0,0.29413065]
[1750242559923,0.560774,104650.0,104640.0,0.29413065]
[1750242560144,0.560774,104650.0,104640.0,0.30368676]
[1750242563163,0.36010511,104650.0,104640.0,0.30368621]
[1750242563332,0.36966068,104650.0,104640.0,0.30368621]
[1750242563972,0.36966068,104650.0,104640.0,0.29413028]
[1750242564179,0.36966123,104650.0,104640.0,0.29413028]
[1750242564612,0.56077446,104650.0,104640.0,0.29413028]
[1750242564820,0.49902379,104650.0,104640.0,0.26546167]
[1750242565034,0.48946822,104650.0,104640.0,0.06477379]
[1750242565247,0.63996644,104650.0,104640.0,0.06477379]
[1750242565458,0.47991256,104650.0,104640.0,0.06477379]
[1750242566090,0.47991256,104650.0,104640.0,0.07433036]
[1750242566532,0.47991256,104650.0,104640.0,0.26546185]
[1750242566974,0.47991256,104650.0,104640.0,0.27501833]
[1750242567740,0.47991256,104650.0,104640.0,0.28457472]
[1750242567953,0.49937504,104650.0,104640.0,0.07433036]
[1750242568407,0.49937504,104650.0,104640.0,0.06477379]
[1750242569601,0.54201504,104650.0,104640.0,0.06477379]
[1750242569793,0.52255256,104650.0,104640.0,0.27501815]
[1750242570052,0.61623375,104650.0,104640.0,0.00157379]
[1750242570280,0.61623375,104650.0,104640.0,0.20226185]
[1750242570502,0.50852031,104650.0,104640.0,0.06537379]
[1750242570716,0.71084031,104650.0,104640.0,0.06537379]
[1750242571380,0.71084031,104650.0,104640.0,0.07493036]
[1750242572515,0.71084031,104650.0,104640.0,0.26606185]
[1750242575952,0.73955931,104650.0,104640.0,0.26606185]
[1750242576210,0.73955931,104650.0,104640.0,0.27561833]
[1750242576418,0.76822564,104650.0,104640.0,0.28517472]
[1750242576599,0.75867044,104650.0,104640.0,0.28517472]
[1750242576854,0.73006269,104650.0,104640.0,0.28517472]
[1750242577479,0.49534712,104650.0,104640.0,0.28517472]
[1750242579536,0.83534712,104650.0,104640.0,0.28517472]
[1750242580425,0.63302712,104650.0,104640.0,0.28517472]
[1750242580646,0.83518712,104650.0,104640.0,0.29473092]
[1750242580895,0.63302712,104650.0,104640.0,0.29473092]
[1750242581129,0.67554712,104650.0,104640.0,0.29473092]
[1750242582538,0.66599165,104650.0,104640.0,0.28517472]
[1750242582750,0.72416211,104650.0,104640.0,0.28517472]
[1750242584670,0.44518293,104650.0,104640.0,0.28517472]
[1750242585738,0.44518293,104650.0,104640.0,0.29473102]
[1750242586686,0.45970459,104650.0,104640.0,0.29473102]
[1750242586825,0.45970459,104650.0,104640.0,0.28517472]
[1750242587031,0.48834159,104650.0,104640.0,0.28517472]
[1750242587697,0.47878593,104650.0,104640.0,0.28517472]
[1750242587917,0.47878593,104650.0,104640.0,0.29473102]
[1750242588154,0.47878593,104650.0,104640.0,0.30428722]
[1750242588872,0.63838593,104650.0,104640.0,0.30428722]
[1750242589231,0.63838593,104650.0,104640.0,0.29473102]
[1750242589915,0.63838593,104650.0,104640.0,0.28517472]
[1750242590364,0.72706678,104650.0,104640.0,0.27561833]
[1750242591524,0.43120663,104650.0,104640.0,0.27561833]
[1750242593213,0.43120663,104650.0,104640.0,0.28517472]
[1750242593501,0.77120663,104650.0,104640.0,0.28517472]
[1750242594276,0.77120663,104650.0,104640.0,0.27561833]
[1750242596549,0.79408847,104650.0,104640.0,0.06537379]
[1750242596737,0.6081605,104650.0,104640.0,0.06537379]
[1750242596945,0.79927373,104650.0,104640.0,0.06537379]
[1750242599432,0.79927373,104650.0,104640.0,0.07493036]
[1750242599926,0.79927373,104650.0,104640.0,0.26606185]
[1750242600364,0.79927373,104650.0,104640.0,0.27561833]
[1750242601462,0.89542295,104650.0,104640.0,0.27561833]
[1750242602113,0.79927373,104650.0,104640.0,0.28517472]
[1750242602323,0.80882939,104650.0,104640.0,0.29473083]
[1750242602540,0.81838477,104650.0,104640.0,0.28517472]
[1750242602769,0.81838477,104650.0,104640.0,0.29473102]
[1750242603215,0.61755561,104650.0,104640.0,0.30428658]
[1750242603431,0.63666628,104650.0,104640.0,0.30428658]
[1750242604319,0.63666565,104650.0,104640.0,0.30428658]
[1750242604553,0.44426103,104650.0,104640.0,0.30528658]
[1750242604772,0.4548165,104650.0,104640.0,0.30928658]
[1750242605327,0.44526103,104650.0,104640.0,0.30928658]
[1750242605552,0.4548165,104650.0,104640.0,0.30928658]
[1750242607002,0.41659534,104650.0,104640.0,0.30928658]
[1750242607226,0.43570574,104650.0,104640.0,0.36127466]
[1750242607447,0.42615045,104650.0,104640.0,0.36127466]
[1750242607682,0.41659534,104650.0,104640.0,0.30928658]
[1750242607931,0.41659534,104650.0,104640.0,0.56500834]
[1750242607932,0.38795834,104650.0,104640.0,0.56500834]
[1750242608167,0.35552166,104650.0,104640.0,0.56500834]
[1750242608437,0.3650765,104650.0,104640.0,0.56500834]
[1750242608889,0.35552166,104650.0,104640.0,0.56500834]
[1750242610952,0.36507659,104650.0,104640.0,0.56500834]
[1750242611641,0.3650765,104650.0,104640.0,0.56500834]
[1750242614321,0.37463161,104650.0,104640.0,0.56500834]
[1750242614534,0.37463152,104650.0,104640.0,0.56500834]
[1750242615695,0.35552166,104650.0,104640.0,0.56500834]
[1750242615936,0.001,104650.0,104640.0,0.56500834]
[1750242616859,0.001,104650.0,104640.0,0.56300834]
[1750242617086,0.001,104650.0,104640.0,0.56400834]
[1750242618199,0.002,104650.0,104640.0,0.57000834]
[1750242627773,1.242,104650.0,104640.0,0.57000834]
[1750242628481,1.25155493,104650.0,104640.0,0.41052834]
[1750242628702,1.242,104650.0,104640.0,0.56988834]
[1750242630768,1.242,104650.0,104640.0,0.56984834]
[1750242630993,1.25155502,104650.0,104640.0,0.56984834]
[1750242631648,1.60111022,104650.0,104640.0,0.56984834]
[1750242632112,1.6106656,104650.0,104640.0,0.41052834]
[1750242632339,1.60111022,104650.0,104640.0,0.53914834]
[1750242633223,1.6106656,104650.0,104640.0,0.53914834]
[1750242633662,1.60111022,104650.0,104640.0,0.53914834]
[1750242633888,1.59155502,104650.0,104640.0,0.53914834]
[1750242634116,1.582,104650.0,104640.0,0.53914834]
[1750242634564,1.582,104650.0,104640.0,0.56994834]
[1750242644268,1.242,104650.0,104640.0,0.56994834]
[1750242644496,1.582,104650.0,104640.0,0.56994834]
[1750242651362,1.582,104650.0,104640.0,0.58448919]
[1750242652687,1.33246878,104650.0,104640.0,0.58448919]
[1750242661983,1.33246878,104650.0,104640.0,0.42516919]
[1750242662196,1.33246878,104650.0,104640.0,0.37982834]
[1750242662403,1.38367995,104650.0,104640.0,0.34672834]
[1750242662624,1.49887145,104650.0,104640.0,0.34672797]
[1750242662830,1.68998541,104650.0,104640.0,0.32761593]
[1750242663054,1.78613463,104650.0,104640.0,0.32761593]
[1750242663246,1.78613463,104650.0,104640.0,0.48677593]
[1750242663444,1.5950214,104650.0,104640.0,0.50588797]
[1750242663899,1.60457706,104650.0,104640.0,0.50588797]
[1750242664129,1.46677151,104650.0,104640.0,0.33717204]
[1750242664339,1.43399086,104650.0,104640.0,0.50588806]
[1750242664570,1.43399086,104650.0,104640.0,0.5058876]
[1750242665473,1.62510409,104650.0,104640.0,0.49633167]
[1750242665904,1.68983099,104650.0,104640.0,0.10781555]
[1750242666117,1.67071995,104650.0,104640.0,0.46766352]
[1750242666337,1.67071995,104650.0,104640.0,0.47721991]
[1750242666488,1.67071995,104650.0,104640.0,0.48677621]
[1750242666904,1.67071995,104650.0,104640.0,0.32761621]
[1750242667104,1.70282117,104650.0,104640.0,0.47721991]
[1750242667518,1.70282117,104650.0,104640.0,0.48677611]
[1750242667718,1.70282117,104650.0,104640.0,0.49633222]
[1750242668925,1.5212625,104650.0,104640.0,0.48677611]
[1750242669167,1.71237646,104650.0,104640.0,0.01157379]
[1750242669957,1.70282108,104650.0,104640.0,0.02113036]
[1750242670200,0.405,104640.0,104630.0,0.4175398]
[1750242670442,0.47682662,104640.0,104630.0,0.4175398]
[1750242671099,0.47682652,104640.0,104630.0,0.4175398]
[1750242671347,0.43366797,104640.0,104630.0,0.4175398]
[1750242671566,0.64391215,104640.0,104630.0,0.23926621]
[1750242671781,0.45278139,104640.0,104630.0,0.41753999]
[1750242671990,0.28935205,104640.0,104630.0,0.42153999]
[1750242672652,0.28179557,104640.0,104630.0,0.42553999]
[1750242672866,0.29135205,104640.0,104630.0,0.42553999]
[1750242673119,0.57863276,104640.0,104630.0,0.24726621]
[1750242673340,0.56907674,104640.0,104630.0,0.2069663]
[1750242673566,0.55952054,104640.0,104630.0,0.20696639]
[1750242673788,0.54996424,104640.0,104630.0,0.008]
[1750242674025,0.08211415,104630.0,104620.0,0.33980748]
[1750242674241,0.09167145,104630.0,104620.0,0.43604924]
[1750242674460,0.69461907,104630.0,104620.0,0.42649212]
[1750242674671,0.92870912,104630.0,104620.0,0.44560773]
[1750242674884,0.87602595,104630.0,104620.0,0.44560773]
[1750242675100,0.85691153,104630.0,104620.0,0.44560773]
[1750242675313,0.86646874,104630.0,104620.0,0.44560773]
[1750242675758,0.6395127,104630.0,104620.0,0.44560773]
[1750242675983,0.345,104630.0,104620.0,0.51440518]
[1750242676201,0.56239883,104630.0,104620.0,0.47910773]
[1750242676448,0.57195549,104630.0,104620.0,0.51170773]
[1750242676877,0.56239883,104630.0,104620.0,0.51170773]
[1750242677089,0.56239883,104630.0,104620.0,0.35254773]
[1750242677309,0.56239883,104630.0,104620.0,0.51170773]
[1750242679255,0.57195558,104630.0,104620.0,0.51170773]
[1750242680548,0.24151261,104630.0,104620.0,0.47910773]
[1750242680799,0.24151252,104630.0,104620.0,0.47910773]
[1750242681237,0.25106964,104630.0,104620.0,0.47910773]
[1750242681713,0.24151252,104630.0,104620.0,0.47910773]
[1750242682134,0.26062703,104630.0,104620.0,0.44760773]
[1750242682352,0.27018442,104630.0,104620.0,0.44760773]
[1750242682567,0.61018442,104630.0,104620.0,0.41550774]
[1750242682785,0.61018442,104630.0,104620.0,0.40860774]
[1750242683011,0.61018442,104630.0,104620.0,0.37080774]
[1750242683451,1.13742548,104630.0,104620.0,0.2765181]
[1750242683676,1.13742548,104630.0,104620.0,0.39052604]
[1750242683677,0.94627572,104630.0,104620.0,0.39052604]
[1750242683897,0.72887689,104630.0,104620.0,0.38096828]
[1750242684151,1.13742548,104630.0,104620.0,0.36931034]
[1750242684411,0.84502049,104630.0,104620.0,0.36931034]
[1750242684697,1.04330481,104630.0,104620.0,0.16116]
[1750242684942,1.03374742,104630.0,104620.0,0.16116]
[1750242685188,1.03374742,104630.0,104620.0,0.1707184]
[1750242685429,1.03374742,104630.0,104620.0,0.002]
[1750242685666,1.12516345,104630.0,104620.0,0.0115584]
[1750242685892,1.03374742,104630.0,104620.0,0.21228455]
[1750242686120,1.03374742,104630.0,104620.0,0.21228464]
[1750242687020,1.03374742,104630.0,104620.0,0.22184276]
[1750242687481,1.03374742,104630.0,104620.0,0.21228464]
[1750242687956,1.03374742,104630.0,104620.0,0.22184276]
[1750242688391,1.03374742,104630.0,104620.0,0.20272643]
[1750242688622,1.10580267,104630.0,104620.0,0.20272643]
[1750242688845,1.10580267,104630.0,104620.0,0.002]
[1750242689358,0.81634859,104630.0,104620.0,0.20272624]
[1750242689578,0.81634859,104630.0,104620.0,0.21228436]
[1750242689579,1.02216193,104630.0,104620.0,0.21228436]
[1750242689812,1.02216193,104630.0,104620.0,0.2218423]
[1750242690507,0.38185812,104620.0,104610.0,0.20072598]
[1750242690734,0.34,104620.0,104610.0,0.2299436]
[1750242690954,0.55739883,104620.0,104610.0,0.56431167]
[1750242692103,0.55839883,104620.0,104610.0,0.56631167]
[1750242692347,0.55839883,104620.0,104610.0,0.51934536]
[1750242692583,0.56139883,104620.0,104610.0,0.52034536]
[1750242692811,0.22139883,104620.0,104610.0,0.52034536]
[1750242696758,0.3210354,104630.0,104620.0,0.28354213]
[1750242697083,0.21739883,104640.0,104630.0,0.28272111]
[1750242697361,0.22695467,104640.0,104630.0,0.44188111]
[1750242697590,0.23651069,104640.0,104630.0,0.44188111]
[1750242698040,0.22695467,104640.0,104630.0,0.44188111]
[1750242698245,0.00955584,104640.0,104630.0,0.44188111]
[1750242698461,0.45390943,104640.0,104630.0,0.44188111]
[1750242698693,0.79390943,104640.0,104630.0,0.44188111]
[1750242699762,0.80190943,104640.0,104630.0,0.44388111]
[1750242700011,0.91717106,104640.0,104630.0,0.41368111]
[1750242700235,0.82102184,104640.0,104630.0,0.41368111]
[1750242700483,0.82102184,104640.0,104630.0,0.41364111]
[1750242701777,0.83057832,104640.0,104630.0,0.38094111]
[1750242702202,0.82102184,104640.0,104630.0,0.38094111]
[1750242702426,0.91717106,104640.0,104630.0,0.41254111]
[1750242702634,0.90761476,104640.0,104630.0,0.41254111]
[1750242702842,0.81146554,104640.0,104630.0,0.41254111]
[1750242703259,0.7923535,104640.0,104630.0,0.41254111]
[1750242703471,0.80190961,104640.0,104630.0,0.41254111]
[1750242704528,0.81146591,104640.0,104630.0,0.41254111]
[1750242704773,0.8210223,104640.0,104630.0,0.41254111]
[1750242704985,0.92672809,104640.0,104630.0,0.4125413]
[1750242705198,0.91717225,104640.0,104630.0,0.3809413]
[1750242705405,0.90761568,104640.0,104630.0,0.42369814]
[1750242705824,0.81146646,104640.0,104630.0,0.42369814]
[1750242706039,0.81146591,104640.0,104630.0,0.42369814]
[1750242706254,0.81146591,104640.0,104630.0,0.45479814]
[1750242706255,0.81146581,104640.0,104630.0,0.45479814]
[1750242706465,0.81146536,104640.0,104630.0,0.45479814]
[1750242706674,0.81146527,104640.0,104630.0,0.45479814]
[1750242707773,0.82102147,104640.0,104630.0,0.45479814]
[1750242707987,0.82102138,104640.0,104630.0,0.29567814]
[1750242708200,0.80190925,104640.0,104630.0,0.45479814]
[1750242708426,0.81146527,104640.0,104630.0,0.45479814]
[1750242709723,0.82102147,104640.0,104630.0,0.45479814]
[1750242709947,0.81146527,104640.0,104630.0,0.45479814]
[1750242710165,0.79235341,104640.0,104630.0,0.45479814]
[1750242710388,0.78279766,104640.0,104630.0,0.5510399]
[1750242710609,0.348,104640.0,104630.0,0.5510399]
[1750242710832,0.22539883,104640.0,104630.0,0.5510399]
[1750242711135,0.008,104640.0,104630.0,0.5510399]
[1750242711351,0.008,104640.0,104630.0,0.92517958]
[1750242711568,0.008,104640.0,104630.0,0.70778075]
[1750242712447,1.247,104640.0,104630.0,0.65678075]
[1750242712878,1.24,104640.0,104630.0,0.70578075]
[1750242713310,1.242,104640.0,104630.0,0.71178075]
[1750242713520,1.241,104640.0,104630.0,0.70978075]
[1750242713729,1.241,104640.0,104630.0,0.71578075]
[1750242713948,1.242,104640.0,104630.0,0.71578075]
[1750242715468,1.242,104640.0,104630.0,0.93317958]
[1750242715681,1.242,104640.0,104630.0,0.71578075]
[1750242716347,1.242,104640.0,104630.0,0.93317958]
[1750242716557,1.242,104640.0,104630.0,0.93345958]
[1750242716768,1.242,104640.0,104630.0,0.71606075]
[1750242717425,1.242,104640.0,104630.0,0.93345958]
[1750242717870,1.242,104640.0,104630.0,0.71606075]
[1750242719287,1.242,104640.0,104630.0,0.66606075]
[1750242719512,1.242,104640.0,104630.0,0.93345958]
[1750242720797,1.242,104640.0,104630.0,0.71606075]
[1750242728864,1.242,104640.0,104630.0,0.66606075]
[1750242729078,1.242,104640.0,104630.0,0.71606075]
[1750242733987,1.242,104640.0,104630.0,0.93345958]
[1750242734273,1.242,104640.0,104630.0,1.08345958]
[1750242737413,1.242,104640.0,104630.0,1.37455958]
[1750242737634,1.22646158,104640.0,104630.0,1.37455958]
[1750242737851,1.22646158,104640.0,104630.0,1.08345958]
[1750242738744,1.13833384,104640.0,104630.0,1.30085841]
[1750242739201,0.99888992,104640.0,104630.0,1.30085841]
[1750242739431,0.59177938,104640.0,104630.0,1.66685841]
[1750242739650,0.59077938,104640.0,104630.0,1.66085841]
[1750242739863,0.58977938,104640.0,104630.0,1.65685841]
[1750242740089,0.52487411,104640.0,104630.0,1.66485841]
[1750242740313,0.15348585,104640.0,104630.0,1.62575841]
[1750242740533,0.14611793,104640.0,104630.0,1.63815841]
[1750242740751,0.00047394,104650.0,104630.0,1.63815841]
[1750242740752,0.00047394,104650.0,104640.0,1.08264095]
[1750242740966,0.00047394,104650.0,104640.0,1.61368037]
[1750242741192,0.00047394,104650.0,104640.0,1.76368037]
[1750242741417,5e-05,104670.0,104660.0,1.07429895]
[1750242741672,5e-05,104670.0,104660.0,1.818947]
[1750242742537,5e-05,104670.0,104660.0,1.826747]
[1750242743222,0.00105,104670.0,104660.0,1.828747]
[1750242743656,0.00105,104670.0,104660.0,1.857439]
[1750242743877,0.00105,104670.0,104660.0,1.88657603]
[1750242744322,0.00105,104670.0,104660.0,1.6691772]
[1750242744548,0.00105,104670.0,104660.0,1.88657603]
[1750242744986,0.00205,104670.0,104660.0,1.89157603]
[1750242746308,0.00205,104670.0,104660.0,2.18267603]
[1750242747605,0.00205,104670.0,104660.0,1.98123603]
[1750242747815,0.00205,104670.0,104660.0,2.18263603]
[1750242748299,0.00205,104670.0,104660.0,1.98123603]
[1750242748511,0.00205,104670.0,104660.0,2.18259603]
[1750242749402,0.00205,104670.0,104660.0,2.28329603]
[1750242749626,0.00205,104670.0,104660.0,2.18259603]
[1750242749856,0.00205,104670.0,104660.0,1.89149603]
[1750242750930,0.00205,104670.0,104660.0,2.25889486]
[1750242751143,0.00205,104670.0,104660.0,2.28389486]
[1750242751812,0.00205,104670.0,104660.0,2.53459486]
[1750242752250,0.00105,104670.0,104660.0,2.52959486]
[1750242752461,5e-05,104680.0,104670.0,0.68217796]
[1750242752669,5e-05,104680.0,104670.0,1.37221738]
[1750242753367,5e-05,104680.0,104670.0,1.27597562]
[1750242753797,0.00705,104680.0,104670.0,1.27697562]
[1750242754238,0.00705,104680.0,104670.0,1.37321738]
[1750242754500,0.00705,104680.0,104670.0,0.77941972]
[1750242754718,0.00705,104680.0,104670.0,1.41553738]
[1750242755850,0.01205,104680.0,104670.0,1.41553738]
[1750242756073,0.01205,104680.0,104670.0,1.21421738]
[1750242756294,0.04375,104680.0,104670.0,1.01342285]